Workbook

Sheet NOTES (hidden)

Sheet Directions for Use (hidden)
B2: Philips Energy Solutions Instant Energy and Environmental Impact Calculator for TLED

Sheet TLED PAYBACK CALC
G1: Calculations Prepared for:
G3: (enter customer name)
B8: ENTER SYSTEM DATA BELOW | F8: Existing Lamp | G8: =B16 -> 25W 48" T8 | M8: Payback Calc
B9: Enter Fixture Quantity: | C9: 10 | F9: Replacement Lamp (InstantFit) | G9: =B25 -> 453613 - 12T8/48-5000 IF - 5000K | M9: Year | N9: 0 | O9: 1 | P9: 2 | Q9: 3 | R9: 4 | S9: 5
B10: Enter Lamps per Fixture: | C10: 2 | F10: ="Estimated Lighting Costs Using a "&B16&" Lamp" -> Estimated Lighting Costs Using a 25W 48" T8 Lamp | M10: Cumulative Hours | N10: 0 | O10: =$C$13*O9 -> 4368 | P10: =$C$13*P9 -> 8736 | Q10: 13104 | R10: 17472 | S10: 21840
B11: Enter Operating Hours per Day: | C11: 12 | F11: Existing System Wattage | G11: =LEFT(B16,2)*C20*C9*C10 -> 440 | M11: TL system Cost | N11: =G15 -> 58 | O11: =G14+G15 -> 269.4112 | P11: =$G$14+O11 -> 480.8224 | Q11: =$G$14+P11 -> 692.2336 | R11: 903.6448 | S11: 1115.056
B12: Enter Operating Days per Week: | C12: 7 | F12: x Annual Operating Hours | G12: =C13 -> 4368
B13: Total Annual Burn Hours (Auto Calculated) | C13: =(C11*C12)*52 -> 4368 | F13: kWh used | G13: =G11*G12/1000 -> 1921.92 | M13: TLED System | N13: =G23 -> 160 | O13: =G22+G23 -> 299.3392 | P13: =$G$22+O13 -> 438.6784 | Q13: =$G$22+P13 -> 578.0176 | R13: 717.3568 | S13: 856.696
F14: ="Existing System Energy Cost @ $"&C21&"/kWh" -> Existing System Energy Cost @ $0.11/kWh | G14: =G13*C21 -> 211.4112 | M14: Difference | N14: =N11-N13 -> -102 | O14: -29.928 | P14: 42.144 | Q14: 114.216 | R14: 186.288 | S14: 258.36
B15: Select Lamp to Replace | C15: Cost Per Lamp | F15: ="Lamp Cost ("&C9&" Fixtures*"&C10&" Lamps) @ $"&C18&"/Lamp" -> Lamp Cost (10 Fixtures*2 Lamps) @ $2.9/Lamp | G15: =C18*C9*C10 -> 58
B16: 25W 48" T8 | C16: 2.5 | F16: Total Energy + Lamp Cost | G16: =SUM(G14:G15) -> 269.4112
B17: Fluorsecent Lamp Disposal Cost | C17: 0.4
B18: Final TL Lamp Cost | C18: =SUM(C16:C17) -> 2.9 | F18: ="Estimated Lighting Costs Using a Philips "&B25&" TLED" -> Estimated Lighting Costs Using a Philips 453613 - 12T8/48-5000 IF - 5000K TLED
F19: InstantFit System Wattage (Watts) | G19: =IFERROR(VLOOKUP($B$25,'Pull-Down'!$E$3:$I$29,F27,FALSE)*C9*C10, 500) -> 290
B20: Select Ballast Factor | C20: 0.88 | F20: x Annual Operating Hours | G20: =G12 -> 4368 | M20: Years Payback | N20: =(INTERCEPT(O13:S13,O9:S9)-INTERCEPT(O11:S11,O9:S9))/(SLOPE(O11:S11,O9:S9)-SLOPE(O13:S13,O9:S9)) -> 1.415251415
B21: Select Energy Rate (per kWh) | C21: 0.11 | F21: kWh used | G21: =G19*G20/1000 -> 1266.72 | M21: $ Spent befor payback | N21: =SLOPE(O11:S11,O9:S9)*N20+INTERCEPT(O11:S11,O9:S9) -> 357.2
F22: ="Existing System Energy Cost @ $"&C21&"/kWh" -> Existing System Energy Cost @ $0.11/kWh | G22: =G21*C21 -> 139.3392
F23: ="Lamp Cost ("&C9&" Fixtures*"&C10&" Lamps) @ $"&C27&"/Lamp" -> Lamp Cost (10 Fixtures*2 Lamps) @ $8/Lamp | G23: =C27*C9*C10 -> 160
B24: Select InstantFit TLED | C24: Cost Per Lamp | F24: Total Energy + Lamp Cost | G24: =SUM(G22:G23) -> 299.3392
B25: 453613 - 12T8/48-5000 IF - 5000K | C25: 8
B26: Utility Rebate | C26: 0 | F26: =IFERROR(MID(B16,5,2)*1,MID(B16,5,1)) -> 48
B27: Final End User InstantFit Lamp Cost | C27: =C25-C26 -> 8 | F27: =IF(C20=0.77,3,IF(C20=0.88,4,5)) -> 4
F29: PAYBACK | G29: =N20 -> 1.415251415 | H29: Yrs
F30: Energy saved per year* | G30: =G13-G21 -> 655.2 | H30: kWh
F31: Energy Cost Saved per year* | G31: =G14-G22 -> 72.072
B37: *For esitmation purposes only. Your results may vary based on application and equipment used.

Sheet Pull-Down (hidden)
B1: Linear Fluorescent System Watts | G1: TLED System Watts
B2: 0.77 | C2: 0.88 | D2: 1.18
A3: Lamp to replace | B3: Low Ballast Wattage | C3: Normal Ballast Wattage | D3: High Ballast Wattage | E3: Instant Start Lamps | F3: Ballast Factor | G3: Low Ballast Wattage (0.77) | H3: Normal Ballast Wattage (0.88) | I3: High Ballast Wattage (1.18) | J3: Energy Rate
A4: 32W 48" T8 | B4: =ROUND(LEFT($A4,2)*B$2,1) -> 24.6 | C4: =ROUND(LEFT($A4,2)*C$2,1) -> 28.2 | D4: 37.8 | E4: 434860 - 16.5T8/48-3000 IF - 3000K | F4: 0.77 | G4: 17.5 | H4: 19 | I4: 25.5 | J4: 0.04
A5: 28W 48" T8 | B5: =ROUND(LEFT($A5,2)*B$2,1) -> 21.6 | C5: 24.6 | D5: 33 | E5: 434878 - 16.5T8/48-3500 IF - 3500K | F5: 0.88 | G5: 17.5 | H5: 19 | I5: 25.5 | J5: 0.05
A6: 25W 48" T8 | B6: 19.3 | C6: 22 | D6: 29.5 | E6: 434886 - 16.5T8/48-4000 IF - 4000K | F6: 1.18 | G6: 17.5 | H6: 19 | I6: 25.5 | J6: 0.06
A7: 17W 24" T8 | B7: 13.1 | C7: 15 | D7: 20.1 | E7: 434894 - 16.5T8/48-5000 IF - 5000K | G7: 17.5 | H7: 19 | I7: 25.5 | J7: 0.07
A8: 25W 36" T8 | B8: 19.3 | C8: 22 | D8: 29.5 | E8: 453589 - 12T8/48-3000 IF - 3000K | G8: 12.5 | H8: 14.5 | I8: 18.5 | J8: 0.08
A9: 32W U-Bend | B9: 24.6 | C9: 28.2 | D9: 37.8 | E9: 453597 - 12T8/48-3500 IF - 3500K | G9: 12.5 | H9: 14.5 | I9: 18.5 | J9: 0.09
A10: 40W PL-L | B10: 30.8 | C10: 35.2 | D10: 47.2 | E10: 453605 - 12T8/48-4000 IF - 4000K | G10: 12.5 | H10: 14.5 | I10: 18.5 | J10: 0.1
E11: 453613 - 12T8/48-5000 IF - 5000K | G11: 12.5 | H11: 14.5 | I11: 18.5 | J11: 0.11
E12: 456566 - 17T8/48-4000 IFG - 4000K | G12: 18 | H12: 20 | I12: 24 | J12: 0.12
E13: 456574 - 17T8/48-5000 IFG - 5000K | G13: 18 | H13: 20 | I13: 24 | J13: 0.13
E14: 456897 - 15T8/48-3000 IF DIM - 3000K | G14: 16 | H14: 17.5 | I14: 22 | J14: 0.14
E15: 456905 - 15T8/48-3500 IF DIM - 3500K | G15: 16 | H15: 17.5 | I15: 22 | J15: 0.15
E16: 456913 - 15T8/48-4000 IF DIM - 4000K | G16: 16 | H16: 17.5 | I16: 22 | J16: 0.16
E17: 456921 - 15T8/48-5000 IF DIM - 5000K | G17: 16 | H17: 17.5 | I17: 22 | J17: 0.17
E18: 452052 - 10.5T8/36-3000 IF - 3000K | G18: 12.5 | H18: 13 | I18: 17 | J18: 0.18
E19: 452060 - 10.5T8/36-3500 IF - 3500K | G19: 12.5 | H19: 13 | I19: 17 | J19: 0.19
E20: 452078 - 10.5T8/36-4000 IF - 4000K | G20: 12.5 | H20: 13 | I20: 17 | J20: 0.2
E21: 452086 - 10.5T8/36-5000 IF - 5000K | G21: 12.5 | H21: 13 | I21: 17 | J21: 0.21
E22: 452011 - 8.5T8/24-3000 IF - 3000K | G22: 10 | H22: 10.5 | I22: 14.5 | J22: 0.22
E23: 452029 - 8.5T8/24-3500 IF - 3500K | G23: 10 | H23: 10.5 | I23: 14.5 | J23: 0.23
E24: 452037 - 8.5T8/24-4000 IF - 4000K | G24: 10 | H24: 10.5 | I24: 14.5 | J24: 0.24
E25: 452045 - 8.5T8/24-5000 IF - 5000K | G25: 10 | H25: 10.5 | I25: 14.5 | J25: 0.25
E26: 452664 - 16.5T8/22.5-3000 IF-6U - 3000K | G26: 17.5 | H26: 19 | I26: 25.5 | J26: 0.26
E27: 452672 - 16.5T8/22.5-3500 IF-6U - 3500K | G27: 17.5 | H27: 19 | I27: 25.5 | J27: 0.27
E28: 452680 - 16.5T8/22.5-4000 IF-6U - 4000K | G28: 17.5 | H28: 19 | I28: 25.5 | J28: 0.28
E29: 452698 - 16.5T8/22.5-5000 IF-6U - 5000K | G29: 17.5 | H29: 19 | I29: 25.5 | J29: 0.29
E30: 456632 - 16.5PL-LED/24-3000 IF - 3000K | G30: 17.5 | H30: 19 | I30: 25.5 | J30: 0.3
E31: 456640 - 16.5PL-LED/24-3500 IF - 3500K | G31: 17.5 | H31: 19 | I31: 25.5 | J31: 0.31
E32: 456657 - 16.5PL-LED/24-4000 IF - 4000K | G32: 17.5 | H32: 19 | I32: 25.5 | J32: 0.32
J33: 0.33
J34: 0.34
J35: 0.35
J36: 0.36
J37: 0.37
J38: 0.38
J39: 0.39
J40: 0.4
J41: 0.41
J42: 0.42
J43: 0.43
J44: 0.44
J45: 0.45
J46: 0.46
J47: 0.47
J48: 0.48
J49: 0.49
J50: 0.5

Sheet TLED Info (hidden)
A1: Lamp Type | B1: Technology | C1: PROF 6NC | D1: Ordering Code | E1: Ballast Factor | F1: Adjust System Power (Watts) | G1: Lamp Power (watts) | H1: System Power (watts) | I1: Volts | J1: Base | K1: Rated Avg Life (Hrs) | L1: CRI | M1: Color Temp (K) | N1: MOL (in) | O1: Lumens | P1: DLC Approved | S1: Estimated Lighting Costs Using an Incandescent 65W BR30 Lamp
A2: TLED | B2: InstantFit | C2: 434860 | D2: 16.5T8/48-3000 IF 10/1 | E2: 0.77 | F2: 17.5 | G2: 14 | H2: 17.5 | I2: 120-277, 347 | J2: G13 | K2: 50000 | L2: 82 | M2: 3000 | N2: 48 | O2: 1600 | S2: System Wattage | T2: 65 | U2: Watts
A3: TLED | B3: InstantFit | C3: 434878 | D3: 16.5T8/48-3500 IF 10/1 | E3: 0.77 | F3: 17.5 | G3: 14 | H3: 17.5 | I3: 120-277, 347 | J3: G13 | K3: 50000 | L3: 82 | M3: 3500 | N3: 48 | O3: 1600 | S3: x Annual Operating Hours | T3: 3000 | U3: Hours
A4: TLED | B4: InstantFit | C4: 434886 | D4: 16.5T8/48-4000 IF 10/1 | E4: 0.77 | F4: 17.5 | G4: 14 | H4: 17.5 | I4: 120-277, 347 | J4: G13 | K4: 50000 | L4: 82 | M4: 4000 | N4: 48 | O4: 1600 | T4: =T3*T2 -> 195000 | U4: Watt-hours
A5: TLED | B5: InstantFit | C5: 434894 | D5: 16.5T8/48-5000 IF 10/1 | E5: 0.77 | F5: 17.5 | G5: 14 | H5: 17.5 | I5: 120-277, 347 | J5: G13 | K5: 50000 | L5: 82 | M5: 5000 | N5: 48 | O5: 1600 | S5: Energy Used (kWh) | T5: =T4/1000 -> 195 | U5: kWh
A6: TLED | B6: InstantFit | C6: 434860 | D6: 16.5T8/48-3000 IF 10/1 | E6: 0.88 | F6: 19 | G6: 16.5 | H6: 19 | I6: 120-277, 347 | J6: G13 | K6: 50000 | L6: 82 | M6: 3000 | N6: 48 | O6: 1600 | S6: x kWh Rate of $0.11 | T6: =T5*0.11 -> 21.45 | U6: per year
A7: TLED | B7: InstantFit | C7: 434878 | D7: 16.5T8/48-3500 IF 10/1 | E7: 0.88 | F7: 19 | G7: 16.5 | H7: 19 | I7: 120-277, 347 | J7: G13 | K7: 50000 | L7: 82 | M7: 3500 | N7: 48 | O7: 1600 | S7: x 100 lamps per space | T7: =T6*100 -> 2145 | U7: annual energy cost per space
A8: TLED | B8: InstantFit | C8: 434886 | D8: 16.5T8/48-4000 IF 10/1 | E8: 0.88 | F8: 19 | G8: 16.5 | H8: 19 | I8: 120-277, 347 | J8: G13 | K8: 50000 | L8: 82 | M8: 4000 | N8: 48 | O8: 1600
A9: TLED | B9: InstantFit | C9: 434894 | D9: 16.5T8/48-5000 IF 10/1 | E9: 0.88 | F9: 19 | G9: 16.5 | H9: 19 | I9: 120-277, 347 | J9: G13 | K9: 50000 | L9: 82 | M9: 5000 | N9: 48 | O9: 1600 | S9: Estimated Lighting Costs Using a Philips 10.5W LED BR30 Lamp
A10: TLED | B10: InstantFit | C10: 434860 | D10: 16.5T8/48-3000 IF 10/1 | E10: 1.18 | F10: 25.5 | G10: 21 | H10: 25.5 | I10: 120-277, 347 | J10: G13 | K10: 50000 | L10: 82 | M10: 3000 | N10: 48 | O10: 1600 | S10: Present Wattage | T10: 10.5 | U10: Watts
A11: TLED | B11: InstantFit | C11: 434878 | D11: 16.5T8/48-3500 IF 10/1 | E11: 1.18 | F11: 25.5 | G11: 21 | H11: 25.5 | I11: 120-277, 347 | J11: G13 | K11: 50000 | L11: 82 | M11: 3500 | N11: 48 | O11: 1600 | S11: x Annual Operating Hours | T11: =T3 -> 3000 | U11: Hours
A12: TLED | B12: InstantFit | C12: 434886 | D12: 16.5T8/48-4000 IF 10/1 | E12: 1.18 | F12: 25.5 | G12: 21 | H12: 25.5 | I12: 120-277, 347 | J12: G13 | K12: 50000 | L12: 82 | M12: 4000 | N12: 48 | O12: 1600 | T12: =T11*T10 -> 31500 | U12: Watt-hours
A13: TLED | B13: InstantFit | C13: 434894 | D13: 16.5T8/48-5000 IF 10/1 | E13: 1.18 | F13: 25.5 | G13: 21 | H13: 25.5 | I13: 120-277, 347 | J13: G13 | K13: 50000 | L13: 82 | M13: 5000 | N13: 48 | O13: 1600 | S13: /1000 | T13: =T12/1000 -> 31.5 | U13: kWh
A14: TLED | B14: InstantFit | C14: 453589 | D14: 12T8/48-3000 IF 10/1 | E14: 0.77 | F14: 12.5 | G14: 10.5 | H14: 12.5 | I14: 120-277, 347 | J14: G13 | K14: 50000 | L14: 82 | M14: 3000 | N14: 48 | O14: 1600
A15: TLED | B15: InstantFit | C15: 453597 | D15: 12T8/48-3500 IF 10/1 | E15: 0.77 | F15: 12.5 | G15: 10.5 | H15: 12.5 | I15: 120-277, 347 | J15: G13 | K15: 50000 | L15: 82 | M15: 3500 | N15: 48 | O15: 1600
A16: TLED | B16: InstantFit | C16: 453605 | D16: 12T8/48-4000 IF 10/1 | E16: 0.77 | F16: 12.5 | G16: 10.5 | H16: 12.5 | I16: 120-277, 347 | J16: G13 | K16: 50000 | L16: 82 | M16: 4000 | N16: 48 | O16: 1600
A17: TLED | B17: InstantFit | C17: 453613 | D17: 12T8/48-5000 IF 10/1 | E17: 0.77 | F17: 12.5 | G17: 10.5 | H17: 12.5 | I17: 120-277, 347 | J17: G13 | K17: 50000 | L17: 82 | M17: 5000 | N17: 48 | O17: 1600
A18: TLED | B18: InstantFit | C18: 453589 | D18: 12T8/48-3000 IF 10/1 | E18: 0.88 | F18: 14.5 | G18: 12 | H18: 14.5 | I18: 120-277, 347 | J18: G13 | K18: 50000 | L18: 82 | M18: 3000 | N18: 48 | O18: 1600
A19: TLED | B19: InstantFit | C19: 453597 | D19: 12T8/48-3500 IF 10/1 | E19: 0.88 | F19: 14.5 | G19: 12 | H19: 14.5 | I19: 120-277, 347 | J19: G13 | K19: 50000 | L19: 82 | M19: 3500 | N19: 48 | O19: 1600
A20: TLED | B20: InstantFit | C20: 453605 | D20: 12T8/48-4000 IF 10/1 | E20: 0.88 | F20: 14.5 | G20: 12 | H20: 14.5 | I20: 120-277, 347 | J20: G13 | K20: 50000 | L20: 82 | M20: 4000 | N20: 48 | O20: 1600
A21: TLED | B21: InstantFit | C21: 453613 | D21: 12T8/48-5000 IF 10/1 | E21: 0.88 | F21: 14.5 | G21: 12 | H21: 14.5 | I21: 120-277, 347 | J21: G13 | K21: 50000 | L21: 82 | M21: 5000 | N21: 48 | O21: 1600
A22: TLED | B22: InstantFit | C22: 453589 | D22: 12T8/48-3000 IF 10/1 | E22: 1.18 | F22: 18.5 | G22: 14.5 | H22: 18.5 | I22: 120-277, 347 | J22: G13 | K22: 50000 | L22: 82 | M22: 3000 | N22: 48 | O22: 1600
A23: TLED | B23: InstantFit | C23: 453597 | D23: 12T8/48-3500 IF 10/1 | E23: 1.18 | F23: 18.5 | G23: 14.5 | H23: 18.5 | I23: 120-277, 347 | J23: G13 | K23: 50000 | L23: 82 | M23: 3500 | N23: 48 | O23: 1600
A24: TLED | B24: InstantFit | C24: 453605 | D24: 12T8/48-4000 IF 10/1 | E24: 1.18 | F24: 18.5 | G24: 14.5 | H24: 18.5 | I24: 120-277, 347 | J24: G13 | K24: 50000 | L24: 82 | M24: 4000 | N24: 48 | O24: 1600
A25: TLED | B25: InstantFit | C25: 453613 | D25: 12T8/48-5000 IF 10/1 | E25: 1.18 | F25: 18.5 | G25: 14.5 | H25: 18.5 | I25: 120-277, 347 | J25: G13 | K25: 50000 | L25: 82 | M25: 5000 | N25: 48 | O25: 1600
A26: TLED | B26: InstantFit
A27: TLED | B27: InstantFit
A28: TLED | B28: InstantFit
A29: TLED | B29: InstantFit
A30: TLED | B30: InstantFit
A31: TL | B31: TL | C31: 25W T8 Instant Start | E31: 0.77 | F31: =E31*G31 -> 19.25 | G31: 25 | S31: x kWh Rate of $0.11 | T31: =T13*0.11 -> 3.465 | U31: per year
A32: TL | B32: TL | C32: 28W T8 Instant Start | E32: 0.77 | F32: =E32*G32 -> 21.56 | G32: 28 | S32: x 100 lamps per space | T32: =T31*100 -> 346.5 | U32: annual energy cost per space
A33: TL | B33: TL | C33: 32W T8 Instant Start | E33: 0.77 | F33: 24.64 | G33: 32
A34: TL | B34: TL | C34: 25W T8 Instant Start | E34: 0.88 | F34: 22 | G34: 25 | S34: Total Estimated Annual Savings | T34: =T7-T32 -> 1798.5
A35: TL | B35: TL | C35: 28W T8 Instant Start | E35: 0.88 | F35: 24.64 | G35: 28
A36: TL | B36: TL | C36: 32W T8 Instant Start | E36: 0.88 | F36: 28.16 | G36: 32
A37: TL | B37: TL | C37: 25W T8 Instant Start | E37: 1.18 | F37: 29.5 | G37: 25
A38: TL | B38: TL | C38: 28W T8 Instant Start | E38: 1.18 | F38: 33.04 | G38: 28
A39: TL | B39: TL | C39: 32W T8 Instant Start | E39: 1.18 | F39: 37.76 | G39: 32
A43: Payback

Sheet Changes (hidden)
A1: Date | B1: Description | C1: Owner | D1: Version
A2: 2014-06-18 | B2: No change to ballast factor multiplier per email between Bo/Shane Added U-bend, 2', 3', 4' (2100 lm) TLED options Added 2', 3' & U-bend TL options Limited TLED selection based on TL Lamp selected Auto clear the rebate whenever a new TL Lamp is selected | C2: Brian V | D2: 1.1
A3: 2015-03-20 | B3: Updated product list. Replaced 14.5W products with 12W products | C3: Brian V | D3: 2.1
A4: 2015-03-20 | B4: Updated product list to include PLL (3 SKUs), Dimmable (4 SKUs), Glass (2 SKUs) | C4: Brian V | D4: 3
